[Event "Live Chess"]
[Site "Chess.com"]
[Date "2023.05.20"]
[Round "-"]
[White "CheckThis4"]
[Black "WelshTiger"]
[Result "1-0"]
[WhiteElo "2535"]
[BlackElo "2468"]
[TimeControl "300"]
[EndTime "9:13:24 PDT"]
[Termination "CheckThis4 won by resignation"]

1. Nf3 {[%clk 0:04:57.6]} 1... c5 {[%clk 0:04:57.4]} 2. e4 {[%clk 0:04:54.4]}
2... d6 {[%clk 0:04:54.4]} 3. d4 {[%clk 0:04:48.9]} 3... cxd4 {[%clk 0:04:53.5]}
4. Nxd4 {[%clk 0:04:48.8]} 4... Nf6 {[%clk 0:04:52.5]} 5. Nc3 {[%clk 0:04:48]}
5... Nc6 {[%clk 0:04:51.9]} 6. Bg5 {[%clk 0:04:44]} 6... Bd7 {[%clk 0:04:50.7]}
7. Qd2 {[%clk 0:04:34.8]} 7... Rc8 {[%clk 0:04:48.8]} 8. f3 {[%clk 0:04:29.7]}
8... Nxd4 {[%clk 0:04:41.2]} 9. Qxd4 {[%clk 0:04:27.9]} 9... Qa5 {[%clk
0:04:41.1]} 10. Qd2 {[%clk 0:04:17.1]} 10... e6 {[%clk 0:04:23.4]} 11. h4 {[%clk
0:04:06.2]} 11... Be7 {[%clk 0:04:21.9]} 12. O-O-O {[%clk 0:04:03.6]} 12... b5
{[%clk 0:04:19.8]} 13. Kb1 {[%clk 0:03:58.8]} 13... b4 {[%clk 0:04:17.8]} 14.
Ne2 {[%clk 0:03:57.4]} 14... O-O {[%clk 0:04:05]} 15. Nd4 {[%clk 0:03:53.7]}
15... Rc7 {[%clk 0:03:50.4]} 16. Bd3 {[%clk 0:03:48.3]} 16... Rfc8 {[%clk
0:03:39.9]} 17. Nb3 {[%clk 0:03:35.9]} 17... Qb6 {[%clk 0:03:37.6]} 18. Be3
{[%clk 0:03:34.3]} 18... Qb8 {[%clk 0:03:36]} 19. g4 {[%clk 0:03:31.1]} 19...
Bb5 {[%clk 0:03:28.9]} 20. Rc1 {[%clk 0:03:11]} 20... Nd7 {[%clk 0:03:27.4]} 21.
h5 {[%clk 0:03:04.4]} 21... Ne5 {[%clk 0:03:25.9]} 22. Bxb5 {[%clk 0:02:46.6]}
22... Qxb5 {[%clk 0:03:24.3]} 23. Nd4 {[%clk 0:02:45.6]} 23... Qb7 {[%clk
0:03:18.1]} 24. b3 {[%clk 0:02:41.2]} 24... a5 {[%clk 0:03:15.5]} 25. g5 {[%clk
0:02:36.8]} 25... d5 {[%clk 0:03:00.9]} 26. g6 {[%clk 0:02:34.5]} 26... dxe4
{[%clk 0:02:55.9]} 27. gxf7+ {[%clk 0:02:30.1]} 27... Nxf7 {[%clk 0:02:50.3]}
28. Nxe6 {[%clk 0:02:23.6]} 28... Rc3 {[%clk 0:02:46.5]} 29. Bd4 {[%clk
0:02:15.6]} 29... Qd5 {[%clk 0:02:17.4]} 30. Nxg7 {[%clk 0:02:10.3]} 30... exf3
{[%clk 0:02:07.9]} 31. Rhg1 {[%clk 0:02:03.3]} 31... Bg5 {[%clk 0:02:06.2]} 32.
Ne6 {[%clk 0:01:47.7]} 32... Qxe6 {[%clk 0:01:59.3]} 33. Rxg5+ {[%clk
0:01:46.5]} 33... Nxg5 {[%clk 0:01:54.3]} 34. Qxg5+ {[%clk 0:01:46.4]} 34... Kf8
{[%clk 0:01:53.5]} 35. Qg7+ {[%clk 0:01:30.7]} 35... Ke8 {[%clk 0:01:52.4]} 36.
Qh8+ {[%clk 0:01:28.6]} 36... Kd7 {[%clk 0:01:51]} 37. Qxh7+ {[%clk 0:01:28.1]}
37... Kc6 {[%clk 0:01:50.1]} 38. Qa7 {[%clk 0:01:25.3]} 38... Kd5 {[%clk
0:01:33.9]} 39. Bxc3 {[%clk 0:01:12.7]} 39... bxc3 {[%clk 0:01:31.2]} 40. Rd1+
{[%clk 0:01:11.3]} 40... Ke5 {[%clk 0:01:04]} 41. Re1+ {[%clk 0:01:09.9]} 41...
Kf5 {[%clk 0:01:01.4]} 42. Rxe6 {[%clk 0:01:07.6]} 42... Kxe6 {[%clk 0:00:59.4]}
43. Qe3+ {[%clk 0:01:06.2]} 43... Kd5 {[%clk 0:00:58.3]} 44. Qxf3+ {[%clk
0:01:05.2]} 44... Kc5 {[%clk 0:00:58]} 45. Qf5+ {[%clk 0:01:03.9]} 45... Kb4
{[%clk 0:00:57.6]} 46. Qxc8 {[%clk 0:01:01.6]} 46... a4 {[%clk 0:00:54.4]} 47.
Qc4+ {[%clk 0:00:59.8]} 47... Ka5 {[%clk 0:00:53.5]} 48. Qxc3+ {[%clk
0:00:58.8]} 48... Kb6 {[%clk 0:00:53.1]} 49. Qb4+ {[%clk 0:00:57.4]} 1-0

[Event "Live Chess"]
[Site "Chess.com"]
[Date "2023.05.20"]
[Round "-"]
[White "HD_IN4k"]
[Black "ReeceHockton"]
[Result "0-1"]
[WhiteElo "299"]
[BlackElo "328"]
[TimeControl "300"]
[EndTime "9:13:29 PDT"]
[Termination "ReeceHockton won by resignation"]

1. d4 {[%clk 0:04:56]} 1... d5 {[%clk 0:04:58.1]} 2. c4 {[%clk 0:04:54.5]} 2...
Nf6 {[%clk 0:04:54.6]} 3. Nf3 {[%clk 0:04:50.4]} 3... g6 {[%clk 0:04:52.5]} 4.
cxd5 {[%clk 0:04:46]} 4... Nxd5 {[%clk 0:04:50.2]} 5. e4 {[%clk 0:04:45.6]} 5...
Nb6 {[%clk 0:04:46.1]} 6. Nc3 {[%clk 0:04:39.6]} 6... e6 {[%clk 0:04:44.6]} 7.
e5 {[%clk 0:04:34]} 7... Bg7 {[%clk 0:04:42.8]} 8. Bf4 {[%clk 0:04:28.1]} 8...
c6 {[%clk 0:04:36.3]} 9. Bg5 {[%clk 0:04:25.4]} 9... Qd7 {[%clk 0:04:32.3]} 10.
b3 {[%clk 0:04:13.6]} 10... Nd5 {[%clk 0:04:22.6]} 11. Nxd5 {[%clk 0:04:08.5]}
11... cxd5 {[%clk 0:04:21.5]} 12. a4 {[%clk 0:03:52.7]} 12... b6 {[%clk
0:04:14.9]} 13. Bb5 {[%clk 0:03:51.2]} 13... Nc6 {[%clk 0:04:07.7]} 14. Rc1
{[%clk 0:03:43.6]} 14... Bb7 {[%clk 0:04:03]} 15. O-O {[%clk 0:03:17.2]} 15...
O-O {[%clk 0:03:55.7]} 16. Ne1 {[%clk 0:03:02.9]} 16... Rac8 {[%clk 0:03:53.6]}
17. Nd3 {[%clk 0:03:01.7]} 17... a6 {[%clk 0:03:49.6]} 18. Bxc6 {[%clk
0:02:59.4]} 18... Bxc6 {[%clk 0:03:48.3]} 19. Nb4 {[%clk 0:02:56.6]} 19... a5
{[%clk 0:03:44.8]} 20. Nxc6 {[%clk 0:02:55.3]} 20... Rxc6 {[%clk 0:03:43.8]} 21.
Rxc6 {[%clk 0:02:53.5]} 21... Qxc6 {[%clk 0:03:42.9]} 22. Be7 {[%clk 0:02:38.3]}
22... Re8 {[%clk 0:03:38.8]} 23. Bg5 {[%clk 0:02:27.3]} 23... Qc7 {[%clk
0:03:33.9]} 24. Bc1 {[%clk 0:02:17]} 24... f6 {[%clk 0:03:27.2]} 25. Re1 {[%clk
0:02:02.4]} 25... fxe5 {[%clk 0:03:21.7]} 26. dxe5 {[%clk 0:01:59.9]} 26... Bxe5
{[%clk 0:03:20.1]} 27. g3 {[%clk 0:01:51.4]} 27... h5 {[%clk 0:03:07.8]} 28. f4
{[%clk 0:01:49.8]} 28... Bf6 {[%clk 0:03:02.8]} 29. f5 {[%clk 0:01:44.5]} 29...
Kf8 {[%clk 0:02:55.2]} 30. Bf4 {[%clk 0:01:42.7]} 30... Qd7 {[%clk 0:02:48.8]}
31. fxg6 {[%clk 0:01:40.5]} 31... e5 {[%clk 0:02:44.7]} 32. Bh6+ {[%clk
0:01:32.4]} 32... Bg7 {[%clk 0:02:38.4]} 33. Bxg7+ {[%clk 0:01:30.5]} 33... Kxg7
{[%clk 0:02:37.1]} 34. Qxh5 {[%clk 0:01:25.4]} 34... Rh8 {[%clk 0:02:34.3]} 35.
Qxe5+ {[%clk 0:01:19.7]} 35... Kg8 {[%clk 0:02:30.2]} 36. g7 {[%clk 0:01:14.2]}
36... Qxg7 {[%clk 0:02:28.4]} 37. Qxg7+ {[%clk 0:01:12.1]} 37... Kxg7 {[%clk
0:02:27.1]} 38. Re7+ {[%clk 0:01:09.1]} 38... Kf6 {[%clk 0:02:24.5]} 39. Rb7
{[%clk 0:01:06.2]} 39... Rd8 {[%clk 0:02:19.5]} 40. Rxb6+ {[%clk 0:01:04.5]}
40... Ke5 {[%clk 0:02:17.1]} 41. b4 {[%clk 0:00:59]} 41... d4 {[%clk 0:02:13]}
42. bxa5 {[%clk 0:00:57.4]} 42... d3 {[%clk 0:02:11.6]} 43. Rb5+ {[%clk
0:00:56.4]} 43... Ke4 {[%clk 0:02:10]} 44. Rb4+ {[%clk 0:00:55.4]} 44... Ke3
{[%clk 0:02:08.5]} 45. Kf1 {[%clk 0:00:51.7]} 45... Rd4 {[%clk 0:02:01]} 46.
Rxd4 {[%clk 0:00:49.9]} 46... Kxd4 {[%clk 0:01:56.7]} 47. a6 {[%clk 0:00:49.6]}
47... d2 {[%clk 0:01:55.5]} 48. a7 {[%clk 0:00:49.5]} 48... d1=Q+ {[%clk
0:01:54.1]} 49. Kg2 {[%clk 0:00:47.7]} 49... Qxa4 {[%clk 0:01:47.7]} 50. a8=Q
{[%clk 0:00:42.3]} 50... Qxa8+ {[%clk 0:01:46.5]} 51. Kh3 {[%clk 0:00:38.9]}
51... Qe4 {[%clk 0:01:41.3]} 52. g4 {[%clk 0:00:37.5]} 52... Ke3 {[%clk
0:01:39.1]} 53. Kh4 {[%clk 0:00:35.7]} 53... Qf4 {[%clk 0:01:37.7]} 54. h3
{[%clk 0:00:33.5]} 54... Kf3 {[%clk 0:01:36.1]} 55. Kh5 {[%clk 0:00:30.3]} 55...
Qg3 {[%clk 0:01:34.4]} 56. h4 {[%clk 0:00:28.1]} 56... Qxg4+ {[%clk 0:01:30.1]}
57. Kh6 {[%clk 0:00:25.8]} 57... Qxh4+ {[%clk 0:01:26.6]} 0-1

[Event "Live Chess"]
[Site "Chess.com"]
[Date "2023.05.20"]
[Round "-"]
[White "Inglaterra"]
[Black "SimpleHarmonic1"]
[Result "1-0"]
[WhiteElo "2083"]
[BlackElo "2067"]
[TimeControl "300"]
[EndTime "9:13:33 PDT"]
[Termination "Inglaterra won by resignation"]

1. e4 {[%clk 0:04:55.8]} 1... d6 {[%clk 0:04:58.7]} 2. d4 {[%clk 0:04:53.4]}
2... Nf6 {[%clk 0:04:58.2]} 3. Nc3 {[%clk 0:04:52.8]} 3... g6 {[%clk 0:04:53.8]}
4. f4 {[%clk 0:04:51.7]} 4... Bg7 {[%clk 0:04:51.2]} 5. Nf3 {[%clk 0:04:46.3]}
5... c5 {[%clk 0:04:50.1]} 6. d5 {[%clk 0:04:36.4]} 6... O-O {[%clk 0:04:48.3]}
7. Bd3 {[%clk 0:04:30.2]} 7... b5 {[%clk 0:04:45.2]} 8. O-O {[%clk 0:04:12.1]}
8... c4 {[%clk 0:04:38.3]} 9. Be2 {[%clk 0:04:10.2]} 9... b4 {[%clk 0:04:37.6]}
10. Nb5 {[%clk 0:03:56.1]} 10... Nxe4 {[%clk 0:04:20.9]} 11. Bxc4 {[%clk
0:03:49]} 11... Nd7 {[%clk 0:03:37.6]} 12. Rb1 {[%clk 0:03:37.6]} 12... a6
{[%clk 0:03:28.3]} 13. Nbd4 {[%clk 0:03:33.7]} 13... Bb7 {[%clk 0:03:23.5]} 14.
Qe2 {[%clk 0:03:13.5]} 14... Ndc5 {[%clk 0:03:08.4]} 15. Be3 {[%clk 0:03:00.1]}
15... Nf6 {[%clk 0:02:52.2]} 16. Kh1 {[%clk 0:02:50.7]} 16... Bxd5 {[%clk
0:02:47.7]} 17. f5 {[%clk 0:02:37.2]} 17... Bxc4 {[%clk 0:02:42]} 18. Qxc4
{[%clk 0:02:35.8]} 18... Ng4 {[%clk 0:02:28.4]} 19. Bg1 {[%clk 0:02:28.2]} 19...
Rc8 {[%clk 0:02:26.4]} 20. Qxb4 {[%clk 0:02:20.9]} 20... Ne5 {[%clk 0:01:39.2]}
21. Qd2 {[%clk 0:02:00.4]} 21... Ne4 {[%clk 0:01:28.9]} 22. Qe3 {[%clk
0:01:51.9]} 22... d5 {[%clk 0:01:22.9]} 23. Nxe5 {[%clk 0:01:44.5]} 23... Bxe5
{[%clk 0:01:22.8]} 24. c3 {[%clk 0:01:40.3]} 24... g5 {[%clk 0:01:12.5]} 25. Nf3
{[%clk 0:01:20.4]} 25... Bf4 {[%clk 0:01:11.2]} 26. Qd4 {[%clk 0:01:17.5]} 26...
f6 {[%clk 0:01:01.1]} 27. Be3 {[%clk 0:01:08.1]} 27... Qe8 {[%clk 0:00:48.4]}
28. Bxf4 {[%clk 0:01:03.9]} 28... gxf4 {[%clk 0:00:48.3]} 29. Qxd5+ {[%clk
0:00:59.1]} 29... Kh8 {[%clk 0:00:43.3]} 30. Qxe4 {[%clk 0:00:58.1]} 1-0

[Event "Live Chess"]
[Site "Chess.com"]
[Date "2023.05.20"]
[Round "-"]
[White "AwesomeFredster"]
[Black "onemoretime1975"]
[Result "0-1"]
[WhiteElo "1638"]
[BlackElo "1982"]
[TimeControl "300"]
[EndTime "9:13:35 PDT"]
[Termination "onemoretime1975 won by checkmate"]

1. e4 {[%clk 0:04:53.4]} 1... e6 {[%clk 0:04:58.6]} 2. d4 {[%clk 0:04:51.5]}
2... d5 {[%clk 0:04:57.2]} 3. e5 {[%clk 0:04:50.9]} 3... c5 {[%clk 0:04:55.7]}
4. c3 {[%clk 0:04:50.6]} 4... Nc6 {[%clk 0:04:54.6]} 5. Nf3 {[%clk 0:04:49.4]}
5... Bd7 {[%clk 0:04:53.4]} 6. Nbd2 {[%clk 0:04:47.9]} 6... Qb6 {[%clk
0:04:48.8]} 7. b3 {[%clk 0:04:46.6]} 7... cxd4 {[%clk 0:04:46.4]} 8. cxd4 {[%clk
0:04:45.2]} 8... Nxd4 {[%clk 0:04:44.8]} 9. Nxd4 {[%clk 0:04:43.7]} 9... Qxd4
{[%clk 0:04:43.1]} 10. Rb1 {[%clk 0:04:33]} 10... Bb4 {[%clk 0:04:36.5]} 11. Be2
{[%clk 0:04:26]} 11... Qxe5 {[%clk 0:04:31.7]} 12. O-O {[%clk 0:04:21.6]} 12...
Nf6 {[%clk 0:04:23.3]} 13. Nf3 {[%clk 0:04:19.6]} 13... Qd6 {[%clk 0:04:13.3]}
14. Qc2 {[%clk 0:04:11.3]} 14... Rc8 {[%clk 0:04:00.1]} 15. Qd3 {[%clk
0:04:01.6]} 15... a6 {[%clk 0:03:45.5]} 16. Be3 {[%clk 0:03:54.7]} 16... Bb5
{[%clk 0:03:40.6]} 17. Qd1 {[%clk 0:03:48.5]} 17... Bxe2 {[%clk 0:03:38]} 18.
Qxe2 {[%clk 0:03:48.4]} 18... O-O {[%clk 0:03:34.8]} 19. Qd3 {[%clk 0:03:42.9]}
19... Bc5 {[%clk 0:03:14.2]} 20. Ng5 {[%clk 0:03:38.6]} 20... h6 {[%clk
0:03:03.6]} 21. Bxc5 {[%clk 0:03:33.3]} 21... Rxc5 {[%clk 0:02:55.6]} 22. Nf3
{[%clk 0:03:20.6]} 22... Rfc8 {[%clk 0:02:52.3]} 23. Rb2 {[%clk 0:03:14.9]}
23... Rc3 {[%clk 0:02:37]} 24. Qd4 {[%clk 0:02:56.8]} 24... b5 {[%clk
0:02:09.3]} 25. Ne5 {[%clk 0:02:46.8]} 25... R3c7 {[%clk 0:01:54.3]} 26. Ra1
{[%clk 0:02:35.9]} 26... Nd7 {[%clk 0:01:51.3]} 27. Nxd7 {[%clk 0:02:28]} 27...
Rc1+ {[%clk 0:01:47.7]} 28. Rxc1 {[%clk 0:02:21.5]} 28... Rxc1+ {[%clk
0:01:45.1]} 29. Qd1 {[%clk 0:02:21.4]} 29... Rxd1# {[%clk 0:01:44]} 0-1

[Event "Live Chess"]
[Site "Chess.com"]
[Date "2023.05.20"]
[Round "-"]
[White "yeetpizza74"]
[Black "tomdot"]
[Result "1-0"]
[WhiteElo "447"]
[BlackElo "228"]
[TimeControl "300"]
[EndTime "9:13:37 PDT"]
[Termination "yeetpizza74 won by resignation"]

1. e4 {[%clk 0:04:51.6]} 1... e5 {[%clk 0:04:58.2]} 2. Nf3 {[%clk 0:04:50]} 2...
Nc6 {[%clk 0:04:56]} 3. Bc4 {[%clk 0:04:48.5]} 3... Nf6 {[%clk 0:04:47.8]} 4.
Ng5 {[%clk 0:04:45.8]} 4... h6 {[%clk 0:04:42.8]} 5. Nxf7 {[%clk 0:04:43.5]}
5... Qe7 {[%clk 0:04:28.4]} 6. Nxh8 {[%clk 0:04:41.9]} 6... Nxe4 {[%clk
0:03:59.5]} 7. f3 {[%clk 0:04:31]} 7... d5 {[%clk 0:03:48.5]} 8. Bxd5 {[%clk
0:04:25.3]} 8... Nf6 {[%clk 0:03:40.7]} 9. Bxc6+ {[%clk 0:04:21.5]} 9... bxc6
{[%clk 0:03:36.9]} 10. O-O {[%clk 0:04:17.2]} 10... Bf5 {[%clk 0:03:25.5]} 11.
c3 {[%clk 0:04:14]} 11... Nd5 {[%clk 0:02:59.3]} 12. Re1 {[%clk 0:04:10.5]}
12... Qd7 {[%clk 0:02:53.1]} 13. d4 {[%clk 0:04:03.3]} 13... Bd6 {[%clk
0:02:50.3]} 14. dxe5 {[%clk 0:04:01.5]} 14... O-O-O {[%clk 0:02:47.3]} 15. Nd2
{[%clk 0:03:49.9]} 15... Bxe5 {[%clk 0:02:36.3]} 16. Rxe5 {[%clk 0:03:39.5]}
16... Rg8 {[%clk 0:02:34.6]} 17. Nb3 {[%clk 0:03:19]} 17... Rxh8 {[%clk
0:02:33.1]} 18. Na5 {[%clk 0:03:16]} 18... Qd6 {[%clk 0:02:20.3]} 19. Rxf5
{[%clk 0:03:08.2]} 19... Qc5+ {[%clk 0:02:10.9]} 20. Be3 {[%clk 0:02:57.5]}
20... Qxa5 {[%clk 0:02:08.4]} 21. c4 {[%clk 0:02:52.7]} 21... Nxe3 {[%clk
0:02:05.1]} 22. Qe1 {[%clk 0:02:36.7]} 22... Qxf5 {[%clk 0:02:03.5]} 23. Qxe3
{[%clk 0:02:30.5]} 23... Qd7 {[%clk 0:01:46.6]} 24. Qxa7 {[%clk 0:02:21.9]}
24... Qd2 {[%clk 0:01:23.1]} 25. Qa8+ {[%clk 0:02:15.8]} 25... Kd7 {[%clk
0:01:13.6]} 26. Qxh8 {[%clk 0:02:13.9]} 26... Qc2 {[%clk 0:01:08.1]} 27. Qxg7+
{[%clk 0:02:11.5]} 27... Kd6 {[%clk 0:01:02]} 28. Qxh6+ {[%clk 0:02:06.7]} 28...
Kc5 {[%clk 0:00:57.5]} 29. Qg5+ {[%clk 0:01:57.7]} 29... Kxc4 {[%clk 0:00:53.2]}
30. Rc1 {[%clk 0:01:51.6]} 30... Qxc1+ {[%clk 0:00:31.8]} 31. Qxc1+ {[%clk
0:01:49.8]} 31... Kb5 {[%clk 0:00:27.6]} 32. a4+ {[%clk 0:01:47.1]} 32... Kxa4
{[%clk 0:00:26.3]} 33. Qxc6+ {[%clk 0:01:45.9]} 33... Kb3 {[%clk 0:00:23.3]} 34.
Qxc7 {[%clk 0:01:43.6]} 34... Kxb2 {[%clk 0:00:21.5]} 35. f4 {[%clk 0:01:39.7]}
35... Ka1 {[%clk 0:00:17.5]} 36. Qb8 {[%clk 0:01:37.2]} 36... Ka2 {[%clk
0:00:16.2]} 37. Qb7 {[%clk 0:01:35.4]} 37... Ka1 {[%clk 0:00:15.1]} 38. f5
{[%clk 0:01:34.7]} 38... Ka2 {[%clk 0:00:14.3]} 39. f6 {[%clk 0:01:34]} 39...
Ka1 {[%clk 0:00:13.7]} 40. f7 {[%clk 0:01:33.3]} 40... Ka2 {[%clk 0:00:12.7]}
41. f8=Q {[%clk 0:01:31.9]} 1-0

[Event "Live Chess"]
[Site "Chess.com"]
[Date "2023.05.20"]
[Round "-"]
[White "TDCMF"]
[Black "Bot_Boy"]
[Result "0-1"]
[WhiteElo "340"]
[BlackElo "333"]
[TimeControl "300"]
[EndTime "9:13:37 PDT"]
[Termination "Bot_Boy won by checkmate"]

1. e4 {[%clk 0:04:49.4]} 1... Nc6 {[%clk 0:04:57.4]} 2. Nc3 {[%clk 0:04:44.7]}
2... d6 {[%clk 0:04:55.3]} 3. Nf3 {[%clk 0:04:40.1]} 3... e5 {[%clk 0:04:53.6]}
4. d4 {[%clk 0:04:35.3]} 4... Bg4 {[%clk 0:04:40.5]} 5. d5 {[%clk 0:04:28.9]}
5... Bxf3 {[%clk 0:04:33.9]} 6. Qxf3 {[%clk 0:04:25.4]} 6... Nd4 {[%clk
0:04:30.1]} 7. Qd3 {[%clk 0:04:10.5]} 7... Nf6 {[%clk 0:04:19.8]} 8. Bg5 {[%clk
0:04:01.3]} 8... Be7 {[%clk 0:04:04.7]} 9. Qc4 {[%clk 0:03:43.1]} 9... Nxc2+
{[%clk 0:03:53]} 10. Kd2 {[%clk 0:03:34.4]} 10... Nxa1 {[%clk 0:03:42]} 11. Be2
{[%clk 0:03:23.4]} 11... h5 {[%clk 0:03:33.9]} 12. Rxa1 {[%clk 0:03:19.1]} 12...
Ng4 {[%clk 0:03:24.6]} 13. h4 {[%clk 0:03:04]} 13... Bxg5+ {[%clk 0:03:21.2]}
14. hxg5 {[%clk 0:03:02.5]} 14... Qxg5+ {[%clk 0:03:17.2]} 15. f4 {[%clk
0:02:56.4]} 15... Qxf4+ {[%clk 0:03:13]} 16. Kc2 {[%clk 0:02:45]} 16... Ne3+
{[%clk 0:03:07.9]} 17. Kd3 {[%clk 0:02:39.7]} 17... Nxc4 {[%clk 0:03:05]} 18.
Kxc4 {[%clk 0:02:37.6]} 18... g6 {[%clk 0:02:53]} 19. Na4 {[%clk 0:02:30]} 19...
Qxe4+ {[%clk 0:02:47]} 20. Kb3 {[%clk 0:02:27.6]} 20... Qxe2 {[%clk 0:02:43.9]}
21. Rc1 {[%clk 0:02:19.1]} 21... Kd7 {[%clk 0:02:38.6]} 22. Kc3 {[%clk
0:02:05.1]} 22... b5 {[%clk 0:02:31.4]} 23. Rc2 {[%clk 0:01:55.6]} 23... Qc4+
{[%clk 0:02:25.5]} 24. Kd2 {[%clk 0:01:49.8]} 24... Qxd5+ {[%clk 0:02:22.6]} 25.
Kc3 {[%clk 0:01:42.7]} 25... Rab8 {[%clk 0:02:14.6]} 26. Rd2 {[%clk 0:01:36.4]}
26... b4+ {[%clk 0:02:12]} 27. Kc2 {[%clk 0:01:32.4]} 27... Qxa2 {[%clk
0:02:00]} 28. Nc3 {[%clk 0:01:25.4]} 28... b3+ {[%clk 0:01:56]} 29. Kd3 {[%clk
0:01:21]} 29... Qa6+ {[%clk 0:01:46.5]} 30. Ke3 {[%clk 0:01:13.4]} 30... Rb4
{[%clk 0:01:31.8]} 31. Rd5 {[%clk 0:01:05.7]} 31... Qb6+ {[%clk 0:01:27.5]} 32.
Kd3 {[%clk 0:01:04.1]} 32... Rd4+ {[%clk 0:01:23.6]} 33. Rxd4 {[%clk 0:01:01.7]}
33... Qxd4+ {[%clk 0:01:20.4]} 34. Ke2 {[%clk 0:00:59.3]} 34... Re8 {[%clk
0:01:15.5]} 35. Nb5 {[%clk 0:00:54.6]} 35... Qxb2+ {[%clk 0:01:14]} 36. Kd3
{[%clk 0:00:53.4]} 36... Qc2+ {[%clk 0:01:11.2]} 37. Ke3 {[%clk 0:00:51.4]}
37... e4 {[%clk 0:01:09.8]} 38. Nd4 {[%clk 0:00:48.7]} 38... Qd3+ {[%clk
0:01:05.5]} 39. Kf4 {[%clk 0:00:45.5]} 39... Qxd4 {[%clk 0:01:04]} 40. Kg3
{[%clk 0:00:44.6]} 40... e3 {[%clk 0:01:02.7]} 41. Kf3 {[%clk 0:00:43.8]} 41...
e2 {[%clk 0:00:59.1]} 42. Kg3 {[%clk 0:00:40.3]} 42... e1=Q+ {[%clk 0:00:57]}
43. Kf3 {[%clk 0:00:39.1]} 43... Re3# {[%clk 0:00:55]} 0-1

[Event "Live Chess"]
[Site "Chess.com"]
[Date "2023.05.20"]
[Round "-"]
[White "Alan_Richardson"]
[Black "MarkLim1"]
[Result "1-0"]
[WhiteElo "1714"]
[BlackElo "1626"]
[TimeControl "300"]
[EndTime "9:13:39 PDT"]
[Termination "Alan_Richardson won by checkmate"]

1. d4 {[%clk 0:04:56.1]} 1... Nf6 {[%clk 0:04:58.7]} 2. Bf4 {[%clk 0:04:52.7]}
2... c5 {[%clk 0:04:57.7]} 3. d5 {[%clk 0:04:46.2]} 3... b5 {[%clk 0:04:55.8]}
4. c4 {[%clk 0:04:36.8]} 4... bxc4 {[%clk 0:04:53.4]} 5. Nc3 {[%clk 0:04:35.4]}
5... d6 {[%clk 0:04:51.7]} 6. e4 {[%clk 0:04:34.3]} 6... g6 {[%clk 0:04:44.1]}
7. Bxc4 {[%clk 0:04:31]} 7... Bg7 {[%clk 0:04:43.1]} 8. Nf3 {[%clk 0:04:29.7]}
8... O-O {[%clk 0:04:41.9]} 9. O-O {[%clk 0:04:29.1]} 9... Ba6 {[%clk
0:04:40.6]} 10. Qe2 {[%clk 0:04:13.4]} 10... Bxc4 {[%clk 0:04:38.9]} 11. Qxc4
{[%clk 0:04:11.8]} 11... Qb6 {[%clk 0:04:37.5]} 12. Rab1 {[%clk 0:03:56.1]}
12... Na6 {[%clk 0:04:30.2]} 13. Rfe1 {[%clk 0:03:46.5]} 13... Rab8 {[%clk
0:04:27]} 14. b3 {[%clk 0:03:30.1]} 14... Rb7 {[%clk 0:04:22.2]} 15. e5 {[%clk
0:03:16.4]} 15... Nh5 {[%clk 0:04:17.9]} 16. exd6 {[%clk 0:03:10.2]} 16... exd6
{[%clk 0:04:15.2]} 17. Na4 {[%clk 0:03:02.5]} 17... Qc7 {[%clk 0:03:54.9]} 18.
Bg5 {[%clk 0:02:52.1]} 18... Nb4 {[%clk 0:03:49.2]} 19. Re2 {[%clk 0:02:36.2]}
19... Qa5 {[%clk 0:03:29.1]} 20. Rbe1 {[%clk 0:02:30.7]} 20... h6 {[%clk
0:03:16.5]} 21. Be7 {[%clk 0:02:24.2]} 21... Re8 {[%clk 0:03:12]} 22. Bxd6
{[%clk 0:02:23.1]} 22... Rxe2 {[%clk 0:03:10.3]} 23. Rxe2 {[%clk 0:02:22.2]}
23... Qd8 {[%clk 0:03:04.3]} 24. Bxc5 {[%clk 0:02:17.9]} 24... Qxd5 {[%clk
0:03:00.2]} 25. Qxd5 {[%clk 0:02:03]} 25... Nxd5 {[%clk 0:02:58.6]} 26. h3
{[%clk 0:01:57.2]} 26... Nhf4 {[%clk 0:02:54.2]} 27. Rd2 {[%clk 0:01:55.5]}
27... a5 {[%clk 0:02:43.6]} 28. g3 {[%clk 0:01:45.2]} 28... Nxh3+ {[%clk
0:02:29]} 29. Kh2 {[%clk 0:01:44]} 29... Ng5 {[%clk 0:02:25.7]} 30. Nxg5 {[%clk
0:01:41.2]} 30... hxg5 {[%clk 0:02:24.9]} 31. Rxd5 {[%clk 0:01:40.2]} 31... g4
{[%clk 0:02:22.5]} 32. Bd4 {[%clk 0:01:30.4]} 32... Bxd4 {[%clk 0:02:16.9]} 33.
Rxd4 {[%clk 0:01:29]} 33... Rc7 {[%clk 0:02:15.3]} 34. Rc4 {[%clk 0:01:18.3]}
34... Re7 {[%clk 0:02:11.5]} 35. Rc2 {[%clk 0:01:16.8]} 35... Kg7 {[%clk
0:02:07.3]} 36. Kg2 {[%clk 0:01:15.5]} 36... Kf6 {[%clk 0:02:00.6]} 37. Rc5
{[%clk 0:01:11.9]} 37... Ra7 {[%clk 0:01:58.8]} 38. Nc3 {[%clk 0:01:09.6]} 38...
Rd7 {[%clk 0:01:52.3]} 39. Rxa5 {[%clk 0:01:07.3]} 39... Rd2 {[%clk 0:01:51.2]}
40. b4 {[%clk 0:01:04.1]} 40... Rc2 {[%clk 0:01:49.5]} 41. Ne4+ {[%clk
0:00:59.6]} 41... Kg7 {[%clk 0:01:48.1]} 42. b5 {[%clk 0:00:55.8]} 42... f5
{[%clk 0:01:46.9]} 43. Nd6 {[%clk 0:00:52.7]} 43... Rd2 {[%clk 0:01:45.1]} 44.
Ra6 {[%clk 0:00:47.7]} 44... Rb2 {[%clk 0:01:43.1]} 45. a4 {[%clk 0:00:45.5]}
45... Ra2 {[%clk 0:01:41.8]} 46. b6 {[%clk 0:00:43.9]} 46... Rb2 {[%clk
0:01:40.6]} 47. b7 {[%clk 0:00:42.6]} 47... Rb4 {[%clk 0:01:39.9]} 48. a5 {[%clk
0:00:40.2]} 48... Rb2 {[%clk 0:01:38.7]} 49. Rb6 {[%clk 0:00:37.4]} 49... Ra2
{[%clk 0:01:37.1]} 50. b8=Q {[%clk 0:00:34.9]} 50... Rxa5 {[%clk 0:01:37]} 51.
Qc7+ {[%clk 0:00:31.8]} 51... Kh6 {[%clk 0:01:35.8]} 52. Ne4 {[%clk 0:00:26.5]}
52... fxe4 {[%clk 0:01:27.9]} 53. Qf7 {[%clk 0:00:25]} 53... Rg5 {[%clk
0:01:24.5]} 54. Qf8+ {[%clk 0:00:19.5]} 54... Kh7 {[%clk 0:01:23.2]} 55. Rb7#
{[%clk 0:00:17.6]} 1-0